[Event "Titled Tuesday Blitz June 6 Early 2023"]
[White "Di Benedetto, Edoardo"]
[Black "Rangel, Daniel"]
[WhiteFideId "875740"]
[BlackFideId "2124475"]
[WhiteElo "2296"]
[BlackElo "2231"]
[Result "0-1"]
[Round "1"]
[TimeControl "180+2"]
[Date "2023.06.06"]
[WhiteClock "0:00:50"]
[BlackClock "0:00:14"]
[Board "80"]

1. d4 {[%clk 0:03:00]}  Nf6 {[%clk 0:02:58]} 2. c4 {[%clk 0:03:00]}  e6 {[%clk 0:02:58]} 3. Nf3 {[%clk 0:02:59]}  d5 {[%clk 0:02:59]} 4. g3 {[%clk 0:02:59]}  Be7 {[%clk 0:02:58]} 5. Bg2 {[%clk 0:03:00]}  O-O {[%clk 0:02:59]} 6. O-O {[%clk 0:03:00]}  a5 {[%clk 0:02:59]} 7. Nc3 {[%clk 0:02:59]}  c6 {[%clk 0:02:59]} 8. Qd3 {[%clk 0:02:57]}  b6 {[%clk 0:02:58]} 9. Ne5 {[%clk 0:02:50]}  Ba6 {[%clk 0:02:53]} 10. b3 {[%clk 0:02:47]}  Nfd7 {[%clk 0:02:52]} 11. Nxd7 {[%clk 0:02:46]}  Nxd7 {[%clk 0:02:52]} 12. Bb2 {[%clk 0:02:44]}  c5 {[%clk 0:02:50]} 13. dxc5 {[%clk 0:02:41]}  Nxc5 {[%clk 0:02:51]} 14. Qc2 {[%clk 0:02:40]}  d4 {[%clk 0:02:20]} 15. Rad1 {[%clk 0:02:38]}  e5 {[%clk 0:02:20]} 16. Bxa8 {[%clk 0:02:38]}  Qxa8 {[%clk 0:02:21]} 17. Nd5 {[%clk 0:02:37]}  Bd8 {[%clk 0:02:20]} 18. e3 {[%clk 0:02:37]}  d3 {[%clk 0:02:16]} 19. Rxd3 {[%clk 0:02:35]}  Nxd3 {[%clk 0:02:16]} 20. Qxd3 {[%clk 0:02:35]}  f6 {[%clk 0:02:07]} 21. Ba3 {[%clk 0:02:28]}  Re8 {[%clk 0:02:04]} 22. Rd1 {[%clk 0:02:27]}  Bb7 {[%clk 0:02:04]} 23. Qf5 {[%clk 0:02:22]}  Bc8 {[%clk 0:01:58]} 24. Qh5 {[%clk 0:02:22]}  g6 {[%clk 0:01:52]} 25. Qf3 {[%clk 0:02:22]}  Kg7 {[%clk 0:01:51]} 26. e4 {[%clk 0:02:18]}  h5 {[%clk 0:01:46]} 27. Qe3 {[%clk 0:02:15]}  Bg4 {[%clk 0:01:43]} 28. f3 {[%clk 0:02:15]}  Be6 {[%clk 0:01:39]} 29. Nxb6 {[%clk 0:02:14]}  Bxb6 {[%clk 0:01:31]} 30. Qxb6 {[%clk 0:02:12]}  a4 {[%clk 0:01:31]} 31. Qc7+ {[%clk 0:02:08]}  Kg8 {[%clk 0:01:31]} 32. Qd6 {[%clk 0:02:05]}  axb3 {[%clk 0:01:29]} 33. axb3 {[%clk 0:02:04]}  h4 {[%clk 0:01:26]} 34. gxh4 {[%clk 0:02:02]}  Qb7 {[%clk 0:01:22]} 35. Rd3 {[%clk 0:01:51]}  Qh7 {[%clk 0:01:19]} 36. Qc5 {[%clk 0:01:46]}  Qxh4 {[%clk 0:01:13]} 37. Qf2 {[%clk 0:01:46]}  Qh7 {[%clk 0:00:57]} 38. Bc1 {[%clk 0:01:42]}  Ra8 {[%clk 0:00:55]} 39. Rd1 {[%clk 0:01:36]}  Ra1 {[%clk 0:00:48]} 40. Qe2 {[%clk 0:01:35]}  Qh5 {[%clk 0:00:43]} 41. Be3 {[%clk 0:01:32]}  Ra8 {[%clk 0:00:33]} 42. Qg2 {[%clk 0:01:21]}  Bh3 {[%clk 0:00:29]} 43. Qf2 {[%clk 0:01:15]}  Kh8 {[%clk 0:00:22]} 44. Bb6 {[%clk 0:01:09]}  f5 {[%clk 0:00:20]} 45. Bc7 {[%clk 0:00:54]}  fxe4 {[%clk 0:00:15]} 46. fxe4 {[%clk 0:00:50]}  Qxd1+ {[%clk 0:00:14]} 0-1


[Site "https://www.chess.com"]

[Event "Titled Tuesday Blitz June 6 Early 2023"]
[White "Bochnicka, Vladimir"]
[Black "Yuan, Qingyu"]
[WhiteFideId "14943450"]
[BlackFideId "8609772"]
[WhiteElo "2094"]
[BlackElo "2359"]
[Result "1/2-1/2"]
[Round "1"]
[TimeControl "180+2"]
[Date "2023.06.06"]
[WhiteClock "0:00:12"]
[BlackClock "0:00:05"]
[Board "81"]

1. e4 {[%clk 0:02:56]}  e5 {[%clk 0:02:59]} 2. Nf3 {[%clk 0:02:40]}  Nc6 {[%clk 0:02:59]} 3. Bc4 {[%clk 0:02:12]}  Bc5 {[%clk 0:02:59]} 4. c3 {[%clk 0:02:05]}  Nf6 {[%clk 0:02:59]} 5. d3 {[%clk 0:02:05]}  O-O {[%clk 0:02:58]} 6. Nbd2 {[%clk 0:01:58]}  d5 {[%clk 0:02:57]} 7. exd5 {[%clk 0:01:57]}  Nxd5 {[%clk 0:02:58]} 8. O-O {[%clk 0:01:57]}  Nb6 {[%clk 0:02:53]} 9. Re1 {[%clk 0:01:51]}  Bg4 {[%clk 0:02:39]} 10. h3 {[%clk 0:01:50]}  Bh5 {[%clk 0:02:40]} 11. Ne4 {[%clk 0:01:43]}  Nxc4 {[%clk 0:02:12]} 12. Nxc5 {[%clk 0:01:36]}  Qd5 {[%clk 0:01:30]} 13. dxc4 {[%clk 0:01:16]}  Qxc5 {[%clk 0:01:26]} 14. Qd5 {[%clk 0:01:12]}  Qe7 {[%clk 0:01:02]} 15. Bg5 {[%clk 0:00:58]}  Qd6 {[%clk 0:00:37]} 16. Nxe5 {[%clk 0:00:52]}  Nxe5 {[%clk 0:00:30]} 17. Qxe5 {[%clk 0:00:47]}  Qxe5 {[%clk 0:00:27]} 18. Rxe5 {[%clk 0:00:48]}  Bg6 {[%clk 0:00:24]} 19. Re7 {[%clk 0:00:46]}  Rac8 {[%clk 0:00:12]} 20. Rd1 {[%clk 0:00:45]}  f6 {[%clk 0:00:12]} 21. Bf4 {[%clk 0:00:45]}  Rf7 {[%clk 0:00:12]} 22. Rdd7 {[%clk 0:00:45]}  Rxe7 {[%clk 0:00:06]} 23. Rxe7 {[%clk 0:00:46]}  Bf7 {[%clk 0:00:05]} 24. b3 {[%clk 0:00:44]}  a6 {[%clk 0:00:03]} 25. Bxc7 {[%clk 0:00:42]}  Re8 {[%clk 0:00:04]} 26. Rxe8+ {[%clk 0:00:39]}  Bxe8 {[%clk 0:00:05]} 27. Kf1 {[%clk 0:00:39]}  Kf7 {[%clk 0:00:05]} 28. Ke2 {[%clk 0:00:40]}  Ke6 {[%clk 0:00:05]} 29. Ke3 {[%clk 0:00:41]}  Bc6 {[%clk 0:00:06]} 30. g3 {[%clk 0:00:40]}  Kd7 {[%clk 0:00:06]} 31. Bb6 {[%clk 0:00:40]}  Ke6 {[%clk 0:00:06]} 32. Kd4 {[%clk 0:00:40]}  Bf3 {[%clk 0:00:06]} 33. a4 {[%clk 0:00:39]}  Bd1 {[%clk 0:00:05]} 34. b4 {[%clk 0:00:25]}  Bxa4 {[%clk 0:00:06]} 35. Bc5 {[%clk 0:00:25]}  Bc6 {[%clk 0:00:05]} 36. Bf8 {[%clk 0:00:25]}  g6 {[%clk 0:00:05]} 37. Kc5 {[%clk 0:00:24]}  Bg2 {[%clk 0:00:05]} 38. h4 {[%clk 0:00:24]}  Kd7 {[%clk 0:00:04]} 39. Kb6 {[%clk 0:00:24]}  f5 {[%clk 0:00:04]} 40. c5 {[%clk 0:00:24]}  Ke6 {[%clk 0:00:04]} 41. c4 {[%clk 0:00:22]}  Kd7 {[%clk 0:00:04]} 42. b5 {[%clk 0:00:20]}  axb5 {[%clk 0:00:05]} 43. cxb5 {[%clk 0:00:21]}  Bf3 {[%clk 0:00:05]} 44. Bg7 {[%clk 0:00:19]}  Bg2 {[%clk 0:00:05]} 45. Be5 {[%clk 0:00:20]}  Be4 {[%clk 0:00:05]} 46. Bf4 {[%clk 0:00:20]}  Bf3 {[%clk 0:00:06]} 47. Ka5 {[%clk 0:00:19]}  Be4 {[%clk 0:00:06]} 48. Kb4 {[%clk 0:00:19]}  Bf3 {[%clk 0:00:07]} 49. Kc4 {[%clk 0:00:19]}  Be2+ {[%clk 0:00:07]} 50. Kb4 {[%clk 0:00:19]}  Bf3 {[%clk 0:00:08]} 51. Be3 {[%clk 0:00:19]}  Be2 {[%clk 0:00:05]} 52. c6+ {[%clk 0:00:17]}  bxc6 {[%clk 0:00:06]} 53. b6 {[%clk 0:00:18]}  Kc8 {[%clk 0:00:06]} 54. Kc5 {[%clk 0:00:18]}  Bf3 {[%clk 0:00:05]} 55. Kd6 {[%clk 0:00:17]}  Be4 {[%clk 0:00:05]} 56. Ke7 {[%clk 0:00:18]}  f4 {[%clk 0:00:03]} 57. gxf4 {[%clk 0:00:15]}  h5 {[%clk 0:00:03]} 58. Kf6 {[%clk 0:00:14]}  Kb7 {[%clk 0:00:03]} 59. Ke5 {[%clk 0:00:14]}  Bf5 {[%clk 0:00:03]} 60. Kf6 {[%clk 0:00:14]}  Bb1 {[%clk 0:00:04]} 61. Ke5 {[%clk 0:00:11]}  Bf5 {[%clk 0:00:05]} 62. Bc5 {[%clk 0:00:11]}  Bc2 {[%clk 0:00:05]} 63. Kd6 {[%clk 0:00:12]}  Bf5 {[%clk 0:00:05]} 1/2-1/2


[Site "https://www.chess.com"]

[Event "Titled Tuesday Blitz June 6 Early 2023"]
[White "Ibadov, Dashgyn"]
[Black "Lima, Kleyton Alcantara"]
[WhiteFideId "24107514"]
[BlackFideId "22718397"]
[WhiteElo "2208"]
[BlackElo "2009"]
[Result "1-0"]
[Round "1"]
[TimeControl "180+2"]
[Date "2023.06.06"]
[WhiteClock "0:01:01"]
[BlackClock "0:00:02"]
[Board "82"]

1. e4 {[%clk 0:03:00]}  c5 {[%clk 0:02:59]} 2. Nf3 {[%clk 0:03:00]}  d6 {[%clk 0:02:59]} 3. d4 {[%clk 0:02:59]}  cxd4 {[%clk 0:03:00]} 4. Nxd4 {[%clk 0:03:00]}  Nf6 {[%clk 0:03:00]} 5. Nc3 {[%clk 0:03:00]}  a6 {[%clk 0:03:01]} 6. h3 {[%clk 0:02:58]}  e5 {[%clk 0:02:58]} 7. Nde2 {[%clk 0:02:57]}  h5 {[%clk 0:02:59]} 8. Bg5 {[%clk 0:02:57]}  Be6 {[%clk 0:02:56]} 9. Bxf6 {[%clk 0:02:58]}  Qxf6 {[%clk 0:02:57]} 10. Nd5 {[%clk 0:02:58]}  Qd8 {[%clk 0:02:57]} 11. Nec3 {[%clk 0:02:59]}  g6 {[%clk 0:02:45]} 12. Bc4 {[%clk 0:02:59]}  Bh6 {[%clk 0:02:42]} 13. Qd3 {[%clk 0:02:55]}  Nc6 {[%clk 0:02:36]} 14. O-O {[%clk 0:02:54]}  O-O {[%clk 0:02:29]} 15. Rad1 {[%clk 0:02:53]}  Rc8 {[%clk 0:02:14]} 16. Bb3 {[%clk 0:02:49]}  Nd4 {[%clk 0:02:15]} 17. f4 {[%clk 0:02:46]}  f5 {[%clk 0:02:09]} 18. Qg3 {[%clk 0:02:15]}  Kh7 {[%clk 0:01:40]} 19. Kh1 {[%clk 0:01:59]}  Nxb3 {[%clk 0:01:32]} 20. axb3 {[%clk 0:01:59]}  Bxd5 {[%clk 0:01:30]} 21. Nxd5 {[%clk 0:01:44]}  Rxc2 {[%clk 0:01:18]} 22. fxe5 {[%clk 0:01:39]}  dxe5 {[%clk 0:00:41]} 23. exf5 {[%clk 0:01:39]}  gxf5 {[%clk 0:00:23]} 24. Qd3 {[%clk 0:01:27]}  Rxb2 {[%clk 0:00:09]} 25. Rxf5 {[%clk 0:01:24]}  Kh8 {[%clk 0:00:04]} 26. Rxh5 {[%clk 0:01:22]}  Qd6 {[%clk 0:00:02]} 27. Qe3 {[%clk 0:01:14]}  Kg7 {[%clk 0:00:01]} 28. Rxh6 {[%clk 0:01:04]}  Qxh6 {[%clk 0:00:02]} 29. Qxe5+ {[%clk 0:01:04]}  Kh7 {[%clk 0:00:01]} 30. Qxb2 {[%clk 0:01:05]}  Rg8 {[%clk 0:00:02]} 31. Nf6+ {[%clk 0:01:01]} 1-0


[Site "https://www.chess.com"]

[Event "Titled Tuesday Blitz June 6 Early 2023"]
[White "Mogirzan, Matei-Valeriu"]
[Black "Horvath, Dominik"]
[WhiteFideId "1257455"]
[BlackFideId "1642561"]
[WhiteElo "1733"]
[BlackElo "2407"]
[Result "0-1"]
[Round "1"]
[TimeControl "180+2"]
[Date "2023.06.06"]
[WhiteClock "0:00:03"]
[BlackClock "0:00:32"]
[Board "83"]

1. e4 {[%clk 0:03:00]}  e6 {[%clk 0:02:54]} 2. d4 {[%clk 0:03:00]}  d5 {[%clk 0:02:54]} 3. Nd2 {[%clk 0:03:01]}  c5 {[%clk 0:02:54]} 4. c3 {[%clk 0:03:01]}  cxd4 {[%clk 0:02:53]} 5. cxd4 {[%clk 0:03:02]}  Nc6 {[%clk 0:02:54]} 6. Ngf3 {[%clk 0:03:02]}  dxe4 {[%clk 0:02:53]} 7. Nxe4 {[%clk 0:03:03]}  Nf6 {[%clk 0:02:53]} 8. Nc3 {[%clk 0:03:03]}  Be7 {[%clk 0:02:51]} 9. Bd3 {[%clk 0:03:03]}  O-O {[%clk 0:02:50]} 10. Bg5 {[%clk 0:03:04]}  b6 {[%clk 0:02:50]} 11. h4 {[%clk 0:03:03]}  Bb7 {[%clk 0:02:50]} 12. Bxf6 {[%clk 0:02:56]}  Bxf6 {[%clk 0:02:49]} 13. Bxh7+ {[%clk 0:02:56]}  Kxh7 {[%clk 0:02:10]} 14. Ng5+ {[%clk 0:02:53]}  Kh6 {[%clk 0:02:05]} 15. Qd3 {[%clk 0:02:28]}  g6 {[%clk 0:02:04]} 16. h5 {[%clk 0:02:09]}  Kg7 {[%clk 0:02:04]} 17. Nxf7 {[%clk 0:01:27]}  Kxf7 {[%clk 0:02:01]} 18. hxg6+ {[%clk 0:01:01]}  Ke8 {[%clk 0:01:43]} 19. O-O-O {[%clk 0:00:55]}  Ne7 {[%clk 0:01:38]} 20. Kb1 {[%clk 0:00:47]}  Rg8 {[%clk 0:01:34]} 21. Rh7 {[%clk 0:00:44]}  Rg7 {[%clk 0:01:15]} 22. Qb5+ {[%clk 0:00:34]}  Qd7 {[%clk 0:01:12]} 23. Qh5 {[%clk 0:00:29]}  Kd8 {[%clk 0:01:08]} 24. d5 {[%clk 0:00:15]}  exd5 {[%clk 0:01:06]} 25. Ne4 {[%clk 0:00:14]}  dxe4 {[%clk 0:01:00]} 26. Rxd7+ {[%clk 0:00:13]}  Kxd7 {[%clk 0:01:00]} 27. Qg4+ {[%clk 0:00:10]}  Kd6 {[%clk 0:00:54]} 28. Qf4+ {[%clk 0:00:06]}  Be5 {[%clk 0:00:53]} 29. Qh6 {[%clk 0:00:04]}  Rag8 {[%clk 0:00:52]} 30. Qd2+ {[%clk 0:00:02]}  Nd5 {[%clk 0:00:48]} 31. Rh5 {[%clk 0:00:02]}  Rxg6 {[%clk 0:00:45]} 32. Qc2 {[%clk 0:00:01]}  Rxg2 {[%clk 0:00:41]} 33. Rh6+ {[%clk 0:00:01]}  R8g6 {[%clk 0:00:40]} 34. Rxg6+ {[%clk 0:00:01]}  Rxg6 {[%clk 0:00:40]} 35. a3 {[%clk 0:00:02]}  Rg1+ {[%clk 0:00:33]} 36. Ka2 {[%clk 0:00:02]}  Ne7 {[%clk 0:00:32]} 37. Qd2+ {[%clk 0:00:02]}  Bd5+ {[%clk 0:00:32]} 38. b3 {[%clk 0:00:03]} 0-1


[Site "https://www.chess.com"]

[Event "Titled Tuesday Blitz June 6 Early 2023"]
[White "Koshulyan, Egor A."]
[Black "Marcziter, Dmitrii"]
[WhiteFideId "24237000"]
[BlackFideId "13900765"]
[WhiteElo "2216"]
[BlackElo "2162"]
[Result "1-0"]
[Round "1"]
[TimeControl "180+2"]
[Date "2023.06.06"]
[WhiteClock "0:00:20"]
[BlackClock "0:00:12"]
[Board "86"]

1. e4 {[%clk 0:02:58]}  c5 {[%clk 0:02:58]} 2. Nf3 {[%clk 0:02:58]}  a6 {[%clk 0:02:58]} 3. Nc3 {[%clk 0:02:57]}  e6 {[%clk 0:02:56]} 4. d4 {[%clk 0:02:57]}  cxd4 {[%clk 0:02:52]} 5. Nxd4 {[%clk 0:02:58]}  Qc7 {[%clk 0:02:51]} 6. a3 {[%clk 0:02:56]}  b5 {[%clk 0:02:51]} 7. Be2 {[%clk 0:02:54]}  Bb7 {[%clk 0:02:51]} 8. f4 {[%clk 0:02:44]}  Bc5 {[%clk 0:02:43]} 9. Be3 {[%clk 0:02:43]}  d6 {[%clk 0:02:37]} 10. O-O {[%clk 0:02:41]}  Nf6 {[%clk 0:02:34]} 11. Bf3 {[%clk 0:02:40]}  Nbd7 {[%clk 0:02:32]} 12. Kh1 {[%clk 0:02:33]}  O-O {[%clk 0:02:28]} 13. Qe2 {[%clk 0:02:27]}  Nb6 {[%clk 0:02:23]} 14. Rad1 {[%clk 0:02:05]}  Nc4 {[%clk 0:02:21]} 15. Bc1 {[%clk 0:02:05]}  Rfe8 {[%clk 0:02:17]} 16. Ndxb5 {[%clk 0:01:53]}  axb5 {[%clk 0:02:12]} 17. Nxb5 {[%clk 0:01:54]}  Qb6 {[%clk 0:02:02]} 18. Qxc4 {[%clk 0:01:53]}  Nxe4 {[%clk 0:01:33]} 19. Bxe4 {[%clk 0:01:33]}  Bxe4 {[%clk 0:01:28]} 20. Qxe4 {[%clk 0:01:34]}  Qxb5 {[%clk 0:01:27]} 21. b4 {[%clk 0:01:34]}  d5 {[%clk 0:01:20]} 22. Qe5 {[%clk 0:01:33]}  Bb6 {[%clk 0:01:12]} 23. Bb2 {[%clk 0:00:54]}  f6 {[%clk 0:01:10]} 24. Qh5 {[%clk 0:00:53]}  Rec8 {[%clk 0:01:03]} 25. Qg4 {[%clk 0:00:46]}  Qd7 {[%clk 0:00:50]} 26. Bxf6 {[%clk 0:00:44]}  Rxc2 {[%clk 0:00:48]} 27. Be5 {[%clk 0:00:34]}  Rxa3 {[%clk 0:00:38]} 28. f5 {[%clk 0:00:30]}  Raa2 {[%clk 0:00:19]} 29. fxe6 {[%clk 0:00:28]}  Qe7 {[%clk 0:00:20]} 30. Rf7 {[%clk 0:00:26]}  Rxg2 {[%clk 0:00:16]} 31. Qxg2 {[%clk 0:00:22]}  Rxg2 {[%clk 0:00:15]} 32. Rxe7 {[%clk 0:00:22]}  Rf2 {[%clk 0:00:14]} 33. Rxg7+ {[%clk 0:00:21]}  Kh8 {[%clk 0:00:12]} 34. Rg2+ {[%clk 0:00:20]} 1-0


[Site "https://www.chess.com"]

[Event "Titled Tuesday Blitz June 6 Early 2023"]
[White "Dimitrov, Atanas"]
[Black "Makhmudov, Shukhrat"]
[WhiteFideId "2901315"]
[BlackFideId "14200775"]
[WhiteElo "2719"]
[BlackElo "2135"]
[Result "0-1"]
[Round "1"]
[TimeControl "180+2"]
[Date "2023.06.06"]
[WhiteClock "0:00:10"]
[BlackClock "0:00:47"]
[Board "88"]

1. e4 {[%clk 0:03:00]}  e5 {[%clk 0:02:59]} 2. Nc3 {[%clk 0:02:59]}  Nc6 {[%clk 0:03:00]} 3. Bc4 {[%clk 0:02:58]}  Nf6 {[%clk 0:02:59]} 4. d3 {[%clk 0:02:57]}  Bc5 {[%clk 0:02:58]} 5. Nf3 {[%clk 0:02:54]}  a6 {[%clk 0:02:54]} 6. O-O {[%clk 0:02:53]}  d6 {[%clk 0:02:54]} 7. h3 {[%clk 0:02:53]}  Ne7 {[%clk 0:02:54]} 8. a3 {[%clk 0:02:51]}  Ba7 {[%clk 0:02:51]} 9. Nh2 {[%clk 0:02:47]}  c6 {[%clk 0:02:51]} 10. Kh1 {[%clk 0:02:46]}  Ng6 {[%clk 0:02:51]} 11. f4 {[%clk 0:02:38]}  exf4 {[%clk 0:02:50]} 12. Bxf4 {[%clk 0:02:38]}  Nxf4 {[%clk 0:02:50]} 13. Rxf4 {[%clk 0:02:39]}  O-O {[%clk 0:02:49]} 14. Qf3 {[%clk 0:02:29]}  Be6 {[%clk 0:02:40]} 15. Bxe6 {[%clk 0:02:23]}  fxe6 {[%clk 0:02:40]} 16. Rf1 {[%clk 0:02:23]}  e5 {[%clk 0:02:40]} 17. Rf5 {[%clk 0:02:23]}  Nd7 {[%clk 0:02:35]} 18. Ng4 {[%clk 0:02:08]}  Qe7 {[%clk 0:02:35]} 19. Qg3 {[%clk 0:02:02]}  Kh8 {[%clk 0:02:22]} 20. Ne2 {[%clk 0:02:00]}  g6 {[%clk 0:02:19]} 21. R5f3 {[%clk 0:01:49]}  Rxf3 {[%clk 0:02:17]} 22. Rxf3 {[%clk 0:01:50]}  Rf8 {[%clk 0:02:17]} 23. Nh6 {[%clk 0:01:34]}  Rxf3 {[%clk 0:02:06]} 24. Qxf3 {[%clk 0:01:35]}  Kg7 {[%clk 0:02:06]} 25. Ng4 {[%clk 0:01:35]}  Qf7 {[%clk 0:02:00]} 26. Nc3 {[%clk 0:01:20]}  Qxf3 {[%clk 0:01:49]} 27. gxf3 {[%clk 0:01:21]}  Bd4 {[%clk 0:01:49]} 28. Nd1 {[%clk 0:01:20]}  h5 {[%clk 0:01:48]} 29. Nge3 {[%clk 0:01:20]}  Nb6 {[%clk 0:01:40]} 30. c3 {[%clk 0:01:14]}  Bxe3 {[%clk 0:01:37]} 31. Nxe3 {[%clk 0:01:15]}  Kf6 {[%clk 0:01:36]} 32. Kg2 {[%clk 0:01:15]}  Kg5 {[%clk 0:01:34]} 33. b3 {[%clk 0:01:09]}  Nd7 {[%clk 0:01:29]} 34. Kg3 {[%clk 0:01:10]}  b5 {[%clk 0:01:26]} 35. d4 {[%clk 0:01:08]}  h4+ {[%clk 0:01:21]} 36. Kf2 {[%clk 0:01:08]}  exd4 {[%clk 0:01:19]} 37. cxd4 {[%clk 0:01:09]}  c5 {[%clk 0:01:19]} 38. dxc5 {[%clk 0:00:54]}  Nxc5 {[%clk 0:01:19]} 39. Nd5 {[%clk 0:00:54]}  Nxb3 {[%clk 0:01:18]} 40. Nc7 {[%clk 0:00:54]}  Nc5 {[%clk 0:01:17]} 41. Ke3 {[%clk 0:00:53]}  Kf6 {[%clk 0:01:17]} 42. f4 {[%clk 0:00:52]}  g5 {[%clk 0:01:16]} 43. Nd5+ {[%clk 0:00:52]}  Kg6 {[%clk 0:01:14]} 44. f5+ {[%clk 0:00:48]}  Kf7 {[%clk 0:01:14]} 45. Kd4 {[%clk 0:00:49]}  Nd7 {[%clk 0:01:08]} 46. Nc7 {[%clk 0:00:45]}  Nf6 {[%clk 0:01:05]} 47. Nxa6 {[%clk 0:00:39]}  g4 {[%clk 0:01:04]} 48. Ke3 {[%clk 0:00:34]}  gxh3 {[%clk 0:01:03]} 49. Kf3 {[%clk 0:00:34]}  Nxe4 {[%clk 0:01:03]} 50. Nc7 {[%clk 0:00:29]}  Nc3 {[%clk 0:00:59]} 51. Ne6 {[%clk 0:00:25]}  Kf6 {[%clk 0:00:59]} 52. Nd4 {[%clk 0:00:24]}  Ke5 {[%clk 0:00:59]} 53. Kf2 {[%clk 0:00:21]}  Ne4+ {[%clk 0:00:58]} 54. Ke3 {[%clk 0:00:20]}  Ng3 {[%clk 0:00:53]} 55. Nf3+ {[%clk 0:00:18]}  Kxf5 {[%clk 0:00:53]} 56. Nxh4+ {[%clk 0:00:18]}  Ke5 {[%clk 0:00:53]} 57. Nf3+ {[%clk 0:00:18]}  Kd5 {[%clk 0:00:53]} 58. Kd3 {[%clk 0:00:16]}  Nf5 {[%clk 0:00:51]} 59. Nh2 {[%clk 0:00:15]}  Kc5 {[%clk 0:00:51]} 60. Kc3 {[%clk 0:00:13]}  d5 {[%clk 0:00:51]} 61. Kd3 {[%clk 0:00:09]}  Nd6 {[%clk 0:00:47]} 62. Ng4 {[%clk 0:00:09]}  Nc4 {[%clk 0:00:47]} 63. Nf2 {[%clk 0:00:07]}  h2 {[%clk 0:00:46]} 64. Kc3 {[%clk 0:00:07]}  Nxa3 {[%clk 0:00:46]} 65. Nd3+ {[%clk 0:00:08]}  Kd6 {[%clk 0:00:45]} 66. Nf2 {[%clk 0:00:09]}  Nc4 {[%clk 0:00:45]} 67. Kb4 {[%clk 0:00:09]}  Kc6 {[%clk 0:00:44]} 68. Nh1 {[%clk 0:00:10]}  Nd6 {[%clk 0:00:44]} 69. Ng3 {[%clk 0:00:10]}  Nf5 {[%clk 0:00:43]} 70. Nh1 {[%clk 0:00:10]}  Nd6 {[%clk 0:00:44]} 71. Ng3 {[%clk 0:00:08]}  Ne4 {[%clk 0:00:44]} 72. Nh1 {[%clk 0:00:09]}  Kb6 {[%clk 0:00:45]} 73. Kb3 {[%clk 0:00:09]}  Kc5 {[%clk 0:00:45]} 74. Kc2 {[%clk 0:00:10]}  Kc4 {[%clk 0:00:46]} 75. Kb2 {[%clk 0:00:08]}  b4 {[%clk 0:00:46]} 76. Kc2 {[%clk 0:00:09]}  b3+ {[%clk 0:00:46]} 77. Kb2 {[%clk 0:00:10]}  Kb4 {[%clk 0:00:47]} 78. Kb1 {[%clk 0:00:10]}  Kc3 {[%clk 0:00:47]} 0-1


[Site "https://www.chess.com"]

[Event "Titled Tuesday Blitz June 6 Early 2023"]
[White "Jaracz, Pawel"]
[Black "Gatterer, Florian"]
[WhiteFideId "1102222"]
[BlackFideId "811688"]
[WhiteElo "2454"]
[BlackElo "2221"]
[Result "1-0"]
[Round "1"]
[TimeControl "180+2"]
[Date "2023.06.06"]
[WhiteClock "0:00:38"]
[BlackClock "0:00:14"]
[Board "90"]

1. e4 {[%clk 0:02:31]}  c5 {[%clk 0:02:59]} 2. Nf3 {[%clk 0:02:30]}  e6 {[%clk 0:03:00]} 3. d4 {[%clk 0:02:30]}  cxd4 {[%clk 0:03:00]} 4. Nxd4 {[%clk 0:02:30]}  Nf6 {[%clk 0:03:01]} 5. Nc3 {[%clk 0:02:30]}  Nc6 {[%clk 0:03:02]} 6. a3 {[%clk 0:02:29]}  Be7 {[%clk 0:03:01]} 7. Be2 {[%clk 0:02:28]}  O-O {[%clk 0:02:59]} 8. O-O {[%clk 0:02:27]}  d6 {[%clk 0:02:57]} 9. Be3 {[%clk 0:02:25]}  Nxd4 {[%clk 0:02:49]} 10. Bxd4 {[%clk 0:02:25]}  e5 {[%clk 0:02:50]} 11. Be3 {[%clk 0:02:24]}  Be6 {[%clk 0:02:50]} 12. Bf3 {[%clk 0:02:23]}  a6 {[%clk 0:02:48]} 13. Qe2 {[%clk 0:02:21]}  Rc8 {[%clk 0:02:42]} 14. Rfd1 {[%clk 0:02:21]}  Qc7 {[%clk 0:02:34]} 15. Rd2 {[%clk 0:02:17]}  b5 {[%clk 0:02:33]} 16. g4 {[%clk 0:02:00]}  h6 {[%clk 0:02:31]} 17. Kh1 {[%clk 0:01:49]}  Nh7 {[%clk 0:02:25]} 18. Bg2 {[%clk 0:01:39]}  Bg5 {[%clk 0:02:12]} 19. Rad1 {[%clk 0:01:37]}  Bxe3 {[%clk 0:02:12]} 20. Qxe3 {[%clk 0:01:33]}  Bxg4 {[%clk 0:01:59]} 21. f3 {[%clk 0:01:32]}  Be6 {[%clk 0:01:56]} 22. Rxd6 {[%clk 0:01:32]}  Rfd8 {[%clk 0:01:53]} 23. Qd2 {[%clk 0:01:30]}  Rxd6 {[%clk 0:01:44]} 24. Qxd6 {[%clk 0:01:31]}  Qxd6 {[%clk 0:01:44]} 25. Rxd6 {[%clk 0:01:31]}  Ra8 {[%clk 0:01:45]} 26. Bf1 {[%clk 0:01:17]}  Kf8 {[%clk 0:01:44]} 27. a4 {[%clk 0:01:17]}  b4 {[%clk 0:01:29]} 28. Nd5 {[%clk 0:01:15]}  Bxd5 {[%clk 0:01:22]} 29. Rxd5 {[%clk 0:01:14]}  Ng5 {[%clk 0:01:11]} 30. Rxe5 {[%clk 0:01:10]}  Nxf3 {[%clk 0:01:10]} 31. Ra5 {[%clk 0:01:11]}  Nd2 {[%clk 0:01:09]} 32. Bd3 {[%clk 0:01:10]}  Ke7 {[%clk 0:01:05]} 33. Kg2 {[%clk 0:01:08]}  b3 {[%clk 0:01:01]} 34. c3 {[%clk 0:00:57]}  Rd8 {[%clk 0:00:59]} 35. Rd5 {[%clk 0:00:52]}  Ra8 {[%clk 0:00:18]} 36. Kf2 {[%clk 0:00:51]}  f5 {[%clk 0:00:16]} 37. exf5 {[%clk 0:00:51]}  Rc8 {[%clk 0:00:11]} 38. Rd4 {[%clk 0:00:46]}  Rc5 {[%clk 0:00:10]} 39. Ke3 {[%clk 0:00:46]}  Nf1+ {[%clk 0:00:07]} 40. Bxf1 {[%clk 0:00:45]}  Rxf5 {[%clk 0:00:07]} 41. Bxa6 {[%clk 0:00:45]}  Rh5 {[%clk 0:00:08]} 42. h4 {[%clk 0:00:44]}  g5 {[%clk 0:00:07]} 43. Be2 {[%clk 0:00:44]}  Rxh4 {[%clk 0:00:07]} 44. Rxh4 {[%clk 0:00:44]}  gxh4 {[%clk 0:00:08]} 45. Bc4 {[%clk 0:00:42]}  Kd6 {[%clk 0:00:09]} 46. Bxb3 {[%clk 0:00:42]}  Kc7 {[%clk 0:00:09]} 47. Kf3 {[%clk 0:00:42]}  Kb8 {[%clk 0:00:10]} 48. Bd5 {[%clk 0:00:42]}  Ka7 {[%clk 0:00:11]} 49. b4 {[%clk 0:00:42]}  Kb6 {[%clk 0:00:12]} 50. Kg4 {[%clk 0:00:40]}  Kc7 {[%clk 0:00:13]} 51. a5 {[%clk 0:00:40]}  Kb8 {[%clk 0:00:14]} 52. b5 {[%clk 0:00:39]}  Ka7 {[%clk 0:00:15]} 53. c4 {[%clk 0:00:39]}  Kb8 {[%clk 0:00:13]} 54. c5 {[%clk 0:00:39]}  Kc7 {[%clk 0:00:14]} 55. Kxh4 {[%clk 0:00:39]}  Kb8 {[%clk 0:00:14]} 56. b6 {[%clk 0:00:39]}  h5 {[%clk 0:00:14]} 57. a6 {[%clk 0:00:38]} 1-0


[Site "https://www.chess.com"]